{"text_format":"1","workbook":"xlsx","n_sheets":2,"sheets":["Source","MW"],"not_rendered":{"charts":0,"images":0,"macros":1,"external_links":0,"defined_names":1,"comments":0,"pivot_tables":0},"unopened":[],"bounds":{"document_bytes":16777216,"sheet_cells":100000,"rows_first":2000,"rows_last":500,"rows_between":2000,"halvings":0,"cell_chars":16384,"cell_head_chars":4096},"cells_cut":0,"cells_raw":0,"read":"whole","date_system":"1900"}

{"sheet":"Source","index":0,"n_rows":35,"n_cols":7,"rows_kept":35,"cut":false,"hidden":false,"merged":[]}
[]
[]
[]
[]
["التاريخ","المورد","البيان","الوحدة","الكمية","السعر","القيمة"]
["2020-08-15","مورد 1","اسمنت","طن",40,800,{"$f":"IFERROR(E6*F6,\"\")","v":32000}]
["2020-08-15","مورد 3","حديد","طن",50,9500,{"$f":"IFERROR(E7*F7,\"\")","v":475000}]
["2020-08-15","Officena","رمل","م3",60,45,2700]
["2020-08-17","مورد 2","اسمنت","طن",60,850,51000]
["2020-08-17","مورد 1","اسمنت","طن",80,740,59200]
["2020-08-17","مورد 4","حديد","طن",10,10500,105000]
["2020-08-17","مورد 5","حديد","fwfg",35,9700,339500]
["2020-08-18","مورد 6","رمل","م3",100,40,4000]
["2020-08-18","مورد 5","رمل","م3",150,"Salim",""]
["2020-08-18","مورد 3","خشب","م3",45,4500,202500]
["2020-08-18","مورد 3","ok","م3",12,4700,56400]
["2020-08-18","مورد 3","خشب","م3",15,4300,64500]
[null,null,null,null,null,null,0]
[null,null,null,null,null,null,0]
[null,null,null,null,null,null,0]
[null,null,null,null,null,null,0]
[null,null,null,null,null,null,0]
[null,null,null,null,null,null,0]
[null,null,null,null,null,null,0]
[null,null,null,null,null,null,0]
[null,null,null,null,null,null,0]
[null,null,null,null,null,null,0]
[null,null,null,null,null,null,0]
[null,null,null,null,null,null,0]
[null,null,null,null,null,null,0]
[null,null,null,null,null,null,0]
[null,null,null,null,null,null,0]
[null,null,null,null,null,null,0]
[null,null,null,null,null,null,0]
[null,null,null,null,null,null,0]

{"sheet":"MW","index":1,"n_rows":5,"n_cols":7,"rows_kept":5,"cut":false,"hidden":false,"merged":[]}
[]
[]
[]
[]
["التاريخ","المورد","البيان","الوحدة","الكمية","السعر","القيمة"]